Cogmind - Beta 15 @@@ ROGUE MODE // 2025.10.04 @ 00:01:39 Player: souux Result: Destroyed by H-61 Shepherd with Heavy Assault Cannon Performance ------------- Evolutions (2) 1000 Regions Visited (3) 600 Robots Destroyed (82) 410 Value Destroyed (2150) 2150 Prototype IDs (0) 0 Alien Tech Used (0) 0 Bonus (0) 0 TOTAL SCORE: 4160 Bonus ------- None Cogmind --------- Core Integrity 0/550 Matter 217/300 Energy 100/100 System Corruption 0% Temperature Warning (306) Movement Core (400) Ox7 Location -8/Materials Parts ------- > --- POWER (1) -------- (None) > --- PROPULSION (3) --- (None) > --- UTILITY (3) ------ Large Storage Unit > --- WEAPON (4) ------- Heavy Mace > --- INVENTORY (15) --- Wheel Large Matter Pod (150) Advanced Visual Processing Unit Seismic Detector Hardened Medium Armor Plating Improved Light Armor Plating Hacking Suite High-powered Tractor Beam Particle Cannon Heavy Assault Rifle Plasma Cutter Peak State ------------ > --- POWER ------------ Nuclear Core > --- PROPULSION ------- Compact Wheel Compact Wheel > --- UTILITY ---------- Improved Heat Sink Large Storage Unit Improved Light Armor Plating > --- WEAPON ----------- Particle Gun Particle Cannon Heavy Assault Rifle Heavy Mace > --- INVENTORY -------- Large Matter Pod Advanced Visual Processing Unit Seismic Detector Hardened Medium Armor Plating Improved Light Armor Plating Hacking Suite High-powered Tractor Beam Heavy Assault Rifle Plasma Cutter [Rating: 23] Favorites ----------- Power Nuclear Core Engine Ion Engine Power Core Nuclear Core Propulsion Compact Wheel Leg Aluminum Leg Wheel Compact Wheel Utility Large Storage Unit Device Seismic Detector Storage Large Storage Unit Protection Medium Armor Plating Weapon Heavy Assault Rifle Energy Gun Particle Gun Energy Cannon Particle Cannon Ballistic Gun Heavy Assault Rifle Impact Weapon Heavy Mace Build | -11 -10 -9 -8 ------- Run | Yrd Mat Mat Mat Slots Evolved 4 | . . 2 2 Power . | . . . . Propulsion 1 | . . . 1 Utility 1 | . . . 1 Weapon 2 | . . 2 . Parts Attached 52 | 7 10 15 20 Power 6 | 1 1 2 2 Engine 4 | 1 1 1 1 Core 2 | . . 1 1 Reactor . | . . . . Propulsion 14 | 3 3 3 5 Treads . | . . . . Leg 1 | 1 . . . Wheel 13 | 2 3 3 5 Hover . | . . . . Flight . | . . . . Utility 13 | 1 4 2 6 Device 4 | . 1 1 2 Storage 5 | 1 3 . 1 Processor . | . . . . Hackware . | . . . . Protection 4 | . . 1 3 Artifact . | . . . . Weapon 19 | 2 2 8 7 Energy Gun 2 | . . . 2 Energy Cannon 1 | . . . 1 Ballistic Gun 15 | 2 2 8 3 Ballistic Cannon . | . . . . Launcher . | . . . . Special Weapon . | . . . . Impact Weapon 1 | . . . 1 Slashing Weapon . | . . . . Piercing Weapon . | . . . . Special Melee Weapon . | . . . . Unidentified Prototypes . | . . . . Parts Lost 24 | . . 4 20 Power 2 | . . . 2 Propulsion 9 | . . 2 7 Utility 4 | . . . 4 Weapon 9 | . . 2 7 Highest Loss Streak 6 | . . 3 6 To Critical Strikes . | . . . . Average Backups 13 | 5 13 14 12 Power . | 1 1 1 . Propulsion 3 | 3 4 3 2 Utility 3 | . 1 3 6 Weapon 5 | . 6 6 3 Tool/Special . | . . . . Unused Backups 27 | . 8 8 11 Power 1 | . . 1 . Propulsion 4 | . 3 . 1 Utility 10 | . 1 1 8 Weapon 11 | . 4 6 1 Tool/Special 1 | . . . 1 Average Slot Usage (%) 94 | . 91 97 92 Engine 6 | . 14 1 2 Core 4 | . . 9 5 Wheel 23 | . 28 20 22 Device 7 | . 6 8 8 Storage 11 | . 14 11 9 Protection 3 | . . 2 9 Ballistic Gun 33 | . 28 43 29 Peak Build Rating 23 | 6 13 19 23 Average Rating 15 | 3 10 16 20 On Entrance 9 | . 6 13 18 Naked Turns . | . . . . Heaviest Build 47 | 10 32 46 47 Greatest Support 48 | 20 32 32 48 Greatest Overweight (x) 14 | 2 1 2 14 Average Overweight (x) . | . . 1 . Largest Inventory Capacity 15 | 8 15 15 15 Average Capacity 14 | 7 14 15 15 Most Carried 15 | 8 15 15 15 Average Carried 13 | 5 13 14 12 Final Capacity 15 | 8 15 15 15 Final Carried 15 | 6 15 15 11 Class Distribution -------------------- 42% | Mutant 26% | Scavenger-Tank 22% | Gunner 4% | Tank Dominant Class ---------------- Mutant | -10/Materials Gunner | -9/Materials Scavenger-Tank | -8/Materials Resources | -11 -10 -9 -8 ----------- Run | Yrd Mat Mat Mat Matter Collected 2237 | 272 438 804 723 Remotely . | . . . . Salvage Created 3364 | 63 786 1343 1172 Parts 198 | 1 37 88 72 Haulers Intercepted . | . . . . Recyclers Shooed 12 | . 10 . 2 Parts Field Recycled . | . . . . Retrieved Matter . | . . . . Parts Self-Destructed . | . . . . Prevented . | . . . . Kills | -11 -10 -9 -8 ------- Run | Yrd Mat Mat Mat Combat Hostiles Destroyed 62 | . 10 29 23 Guns 61 | . 10 29 22 Cannons 1 | . . . 1 Classes Destroyed 10 | 1 4 3 2 Worker 2 | . . 1 1 Builder 1 | . . . 1 Tunneler 3 | . 1 1 1 Recycler 11 | 1 6 2 2 Watcher 3 | . 2 1 . Swarmer 20 | . 6 7 7 Grunt 27 | . 4 14 9 Duelist 1 | . . 1 . Sentry 12 | . . 7 5 Specialist 2 | . . . 2 Best Kill Streak 6 | 1 6 5 6 Combat Bots Only 6 | . 3 5 6 Max Kills in Single Turn 3 | 1 1 3 2 Gunslinging 2 | . . 2 1 Exploded . | . . . . Melee . | . . . . Uniques/NPCs Destroyed . | . . . . Combat | -11 -10 -9 -8 -------- Run | Yrd Mat Mat Mat Hostile Shots Fired 289 | . 30 80 179 Missed 77 | . 10 19 48 Hits 212 | . 20 61 131 Projectile 212 | . 20 61 131 Critical Strikes 12 | . . 2 10 Damage Taken 3317 | . 186 775 2356 Core 693 | . 19 123 551 Absorbed by Shields . | . . . . Core Remaining (%) 87 | 100 92 69 . Volleys Fired 189 | 1 54 55 79 Largest 4 | 2 2 4 4 Hottest 156 | 40 46 92 156 Shots Fired 578 | 2 108 218 250 Gun 572 | 2 108 218 244 Cannon 6 | . . . 6 Launcher . | . . . . Special . | . . . . Kinetic 527 | 2 108 218 199 Thermal 51 | . . . 51 Explosive . | . . . . Electromagnetic . | . . . . Robot Hit Streak 13 | 2 6 13 13 Robot Miss Streak 4 | . 3 3 4 Penetration Max . | . . . . Secondary Targets 6 | . . 3 3 Max Gunslinging Chain 2 | . . 2 1 Shots Hit Robots 327 | 2 67 127 131 Core Hits 148 | 2 39 55 52 Critical Kills 1 | . 1 . . Critical Parts Destroyed 1 | . . 1 . Critical Strikes 3 | . 1 1 1 Burn 1 | . . . 1 Destroy 2 | . 1 1 . Melee Attacks . | . . . . Impact . | . . . . Slashing . | . . . . Piercing . | . . . . Sneak Attacks . | . . . . Combat Hostiles . | . . . . Follow-up Attacks . | . . . . Damage Inflicted 4694 | 16 659 1831 2188 Guns 4633 | 16 659 1831 2127 Cannons 61 | . . . 61 Explosions . | . . . . Melee . | . . . . Ramming . | . . . . Kinetic 4188 | 16 659 1831 1682 Thermal 506 | . . . 506 Explosive . | . . . . Electromagnetic . | . . . . Impact . | . . . . Slashing . | . . . . Piercing . | . . . . Highest Corruption . | . . . . Average Corruption . | . . . . Corruption Purged . | . . . . Corruption Blocked . | . . . . Overload Shots . | . . . . Overflow Damage . | . . . . Projectiles . | . . . . Explosions . | . . . . Melee . | . . . . Knockbacks . | . . . . Impact . | . . . . Kinetic . | . . . . Secondary . | . . . . Self-Inflicted Damage . | . . . . Shots . | . . . . Rammed . | . . . . Targets Rammed . | . . . . Kicked . | . . . . Crushed . | . . . . Highest Temperature 491 | . 9 267 491 Average Temperature 117 | . 7 62 156 Received Heat Transfer 1098 | . 45 306 747 Effects 11 | . . 1 10 Shutdowns 2 | . . . 2 Energy Bleed 3 | . . 1 2 Matter Decay 3 | . . . 3 Short Circuit 2 | . . . 2 Damage (minor) 1 | . . . 1 Siege Activations . | . . . . Martial Activations . | . . . . Shielding Activations . | . . . . Robots Disrupted . | . . . . Combat Hostiles . | . . . . Robots Corrupted . | . . . . Combat Hostiles . | . . . . Parts Fried . | . . . . Impact Corruptions . | . . . . Robots Melted . | . . . . Combat Hostiles . | . . . . Parts Melted 2 | . . . 2 Heat Transferred 1258 | . . . 1258 Parts Sabotaged . | . . . . Parts Stolen . | . . . . Parts Stripped . | . . . . Power Chain Reactions . | . . . . Alert | -11 -10 -9 -8 ------- Run | Yrd Mat Mat Mat Maximum Alert Level 1 | . . 1 . Low Security (%) 92 | 100 100 76 100 Level 1 7 | . . 23 . Level 2 . | . . . . Level 3 . | . . . . Level 4 . | . . . . Level 5 . | . . . . High Security . | . . . . Max Security . | . . . . Peak Influence 308 | 5 87 308 122 Initial 58 | . . . 58 Average 61 | 1 17 115 58 Influence Increases 1869 | 5 314 891 659 Destroy 0b10 Robot/C 1240 | . 200 580 460 Destroy 0b10 Robot/NC 100 | 5 45 25 25 Destroy Leader 316 | . 54 152 110 Successful Hack 24 | . . 24 . Disable Machine 30 | . . 15 15 Destroy Structure 9 | . . 5 4 Lose Combat Pursuer 150 | . 15 90 45 Influence Decreases 1819 | 5 314 752 748 Entered New Map 81 | . . . 81 Time Decay 1052 | 5 279 402 366 Lost Part 210 | . . 40 170 Lost Ally 10 | . . 10 . Purge Threat 466 | . 35 300 131 Squads Dispatched 11 | . 2 3 6 Investigation 3 | . 1 1 1 Extermination . | . . . . Reinforcement 8 | . 1 2 5 Assault . | . . . . Garrison . | . . . . Intercept . | . . . . Searches Triggered . | . . . . Construction Impeded . | . . . . Haulers Reinforced . | . . . . Active Scanning Responses . | . . . . Cargo Convoy Interrupts . | . . . . Stealth | -11 -10 -9 -8 --------- Run | Yrd Mat Mat Mat Distress Signals 5 | . 1 3 1 Communications Jammed . | . . . . Distress Signals . | . . . . Times Spotted 105 | . 24 41 40 Peak Tracking Total 6 | . 5 5 6 Tactical Retreats 9 | . 1 5 3 Traps | -11 -10 -9 -8 ------- Run | Yrd Mat Mat Mat Traps Triggered 5 | . 1 1 3 Indirectly . | . . . . Trap Hack Attempts . | . . . . Triggered . | . . . . Disarmed . | . . . . Reprogrammed . | . . . . Reused . | . . . . Traps Extracted . | . . . . Installed . | . . . . Triggered . | . . . . Machines | -11 -10 -9 -8 ---------- Run | Yrd Mat Mat Mat Machines Disabled 2 | . . 1 1 Max in Single Turn 1 | . . 1 1 Machines Repaired . | . . . . Machines Dismantled . | . . . . Machines Sabotaged . | . . . . Overloaded Fab Kills . | . . . . Hacking | -11 -10 -9 -8 --------- Run | Yrd Mat Mat Mat Machines Accessed 13 | . 4 7 2 Terminals 13 | . 4 7 2 Fabricators . | . . . . Repair Stations . | . . . . Recycling Units . | . . . . Scanalyzers . | . . . . Garrison Access . | . . . . Total Hacks 35 | . 12 17 6 Successful 21 | . 7 10 4 Failed 14 | . 5 7 2 Catastrophic 2 | . 1 1 . Database Lockouts . | . . . . Manual 23 | . 8 11 4 Terminals 35 | . 12 17 6 Fabricators . | . . . . Repair Stations . | . . . . Recycling Units . | . . . . Scanalyzers . | . . . . Garrison Access . | . . . . Terminal Hacks 10 | . 3 5 2 Branch Access Points 1 | . . 1 . Terminal Index 1 | . . 1 . Unreport Threat 5 | . 1 2 2 Locate Traps 3 | . 2 1 . Fabricator Hacks . | . . . . Repair Station Hacks . | . . . . Recycling Unit Hacks . | . . . . Scanalyzer . | . . . . Garrison Access Hacks . | . . . . Unauthorized Hacks 11 | . 4 5 2 Terminals 11 | . 4 5 2 Assimilate 1 | . . 1 . Botnet 10 | . 4 4 2 Fabricators . | . . . . Repair Stations . | . . . . Recycling Units . | . . . . Scanalyzers . | . . . . Garrison Access . | . . . . Data Cores Recovered . | . . . . Used . | . . . . Hacking Detections 9 | . 4 5 . Full Trace Events 3 | . 1 2 . Feedback Events . | . . . . Feedback Blocked . | . . . . Robot Schematics Acquired . | . . . . Robots Built . | . . . . Authchips . | . . . . Time . | . . . . Total Robot Build Rating . | . . . . Part Schematics Acquired . | . . . . Parts Built . | . . . . Authchips . | . . . . Time . | . . . . Total Part Build Rating . | . . . . Parts Repaired . | . . . . Time . | . . . . Parts Recycled . | . . . . Recycled Matter . | . . . . Retrieved Matter . | . . . . Retrieved Components . | . . . . Parts Scanalyzed . | . . . . Part Schematics Acquired . | . . . . Parts Damaged . | . . . . Bothacking | -11 -10 -9 -8 ------------ Run | Yrd Mat Mat Mat Used RIF Installer . | . . . . Robots Hacked . | . . . . Non-combat . | . . . . Combat . | . . . . Robot Hacks Applied . | . . . . Relay Couplers Released . | . . . . Fabnet Peak Effective % . | . . . . Robots Rewired . | . . . . Allies Hacked . | . . . . Hacks Repelled . | . . . . Allies | -11 -10 -9 -8 -------- Run | Yrd Mat Mat Mat Total Allies 1 | . . 1 . Largest Group 1 | . . 1 . Highest-Rated Group 10 | . . 10 . Highest-Rated Ally 10 | . . 10 . Total Orders . | . . . . Ally Attacks . | . . . . Total Damage . | . . . . Kills . | . . . . Allies Corrupted . | . . . . Allies Melted . | . . . . Intel | -11 -10 -9 -8 ------- Run | Yrd Mat Mat Mat Active Infowar (turns) 1643 | . . 722 921 Seismic 1643 | . . 722 921 Robot Analysis Total . | . . . . Derelict Logs Recovered . | . . . . Drone Launches . | . . . . Drone Recoveries . | . . . . Exploration | -11 -10 -9 -8 ------------- Run | Yrd Mat Mat Mat Turns Passed 3888 | 61 1410 1308 1109 Spaces Moved 2213 | 42 903 667 601 Core 33 | 19 . . 14 Treads . | . . . . Legs . | . . . . Wheels 2180 | 23 903 667 587 Hover . | . . . . Flight . | . . . . Fastest Speed 50 | 50 80 115 100 Average Speed 108 | 87 98 117 114 Slowest Speed 750 | 150 100 130 750 Overloaded Moves . | . . . . Propulsion Burnouts . | . . . . Robots Hopped . | . . . . Potential Cave-ins . | . . . . Cave-ins Triggered . | . . . . Exploration Rate (%) 48 | 3 79 61 51 Regions Visited 3 Branch Regions . Pre-discovered Areas . | . . . . Known Exits Taken . | . . . . Unknown Exits Taken 3 | 1 1 1 . Scrap Searched . | . . . . Spaces Dug . | . . . . Terrain Destroyed . | . . . . Melee . | . . . . Projectile . | . . . . AOE . | . . . . Terrain Rammed . | . . . . Walls Destroyed . | . . . . Machines Disabled . | . . . . Actions | -11 -10 -9 -8 --------- Run | Yrd Mat Mat Mat Total 3323 | 64 1343 1059 857 Wait 740 | 3 323 285 129 Move 2210 | 41 902 666 601 Hop . | . . . . Pick Up 73 | 11 28 18 16 Fast Attach 5 | 1 2 2 . Attach 27 | 6 . 6 15 Detach 3 | 1 1 . 1 Swap 25 | . 10 9 6 Drop 51 | . 23 18 10 Fire 189 | 1 54 55 79 Melee . | . . . . Ram . | . . . . Kick . | . . . . Crush . | . . . . Escape Stasis . | . . . . Rewire . | . . . . Trap . | . . . . Miscellaneous . | . . . . Route ------- -11/Scrapyard -10/Materials (discovered 3 exits: *Mat x2 / [*Min]) -9/Materials (discovered 3 exits: *Mat / *Min x2) -8/Materials (discovered 1 exit: [*Fac]) History --------- Turn | Location | Event 18 | -11/Scrapyard | Discovered new exit (range 14) 62 | -11/Scrapyard | Entered Materials 304 | -10/Materials | Build established: Mutant 369 | -10/Materials | Discovered new exit (range 11) 693 | -10/Materials | Discovered new exit (range 14) 1026 | -10/Materials | Discovered new exit (range 15) 1472 | -10/Materials | Entered another Materials area 1472 | -9/Materials | Evolved 2 slots: Weapon x2 1960 | -9/Materials | Build established: Gunner 2118 | -9/Materials | Discovered new exit (range 12) 2253 | -9/Materials | Lost 3 parts (1n2w) 2305 | -9/Materials | Identified exit to Mines 2742 | -9/Materials | Discovered new exit (range 16) 2780 | -9/Materials | Entered another Materials area 2780 | -8/Materials | Evolved 2 slots: Propulsion x1, Utility x1 2920 | -8/Materials | Build established: Scavenger-Tank 3276 | -8/Materials | Discovered new exit (range 10) 3342 | -8/Materials | Lost 4 parts (3n1w) 3716 | -8/Materials | Core integrity fell below 50% 3748 | -8/Materials | Lost 6 parts (4n1u1w) 3875 | -8/Materials | Core integrity fell below 20% 3889 | -8/Materials | Destroyed by H-61 Shepherd with Heavy Assault Cannon Last Messages --------------- 03853_ Critical hit (Blast). 03853_ Knocked back. 03855_ K-01 Serf destroyed. 03857_ U-05 Engineer builds a Wall. 03857_ K-01 Serf collects debris. 03861_ Knocked back. 03863_ Power failure, Nuclear Core shutdown. 03863_ K-01 Serf collects debris. 03863_ Knocked back. 03868_ Nuclear Core destroyed. 03868_ Knocked back. 03869_ K-01 Serf collects debris. 03872_ Critical hit (Burn: +37). 03874_ Knocked back. 03875_ R-06 Scavenger collects Lgt. Nuclear Core. 03876_ Overheating: Matter decay (-50). 03879_ R-06 Scavenger collects Aluminum Leg. 03880_ Critical hit (Burn: +37). 03884_ Hrd. Medium Armor Plating destroyed. 03884_ Particle Gun destroyed. Map ----- +----------------------------------------------------+ | | | | | | | ?????????????????????????????????????????????????? | | ?????????????????????????????????????????????????? | | ?????????????????????????????????????????????????? | | ?????????????????????????????????????????????????? | | ?????????????????????????????????????????????????? | | ?????????????????????????????????????????????????? | | ?????????????????????????????????????????????????? | | ?????????????????????????????? ??????????????????? | | ?????????????????????????????? ??????????????????? | | ?????????????????????????????? ??????????????????? | | ?????????????????????????????? ??????????????????? | | ?#####???????????????????????? ??????????????????? | | ?# #???????????????????????# #?????????????????? | | ?# < #???????????????????????# #?????????????????? | | # #?????#######???????????# #?????????????????? | | + ####### #???????????# #?????????????????? | | # % [ #???????????+ ?????????????????? | | # * ! ! #???????????# #?????????????????? | | # [ == #???????????# #?????????????????? | | ?# ### ### #???????????# ###???????????????? | | ?# ## ## ##############k##########????????? | | ?# ## ## uggg % %% %*H ?????? | | ## ### ## g % %@ *%#####????????????? | | ! * #?###### % % %% ##???????????????? | | = #??????# ############# #????????????????? | | #??????# ###########?# #????????????????? | | ######??????# # !! #?# #????????????????? | | #?????????# # !! #?# ########?????????? | | #?????????# # ! =### #?????????? | | #?????????# =#* =! ## #?????????? | | #?????????# * /== *### #?????????? | | #?????????# %#[ "" !#?# #### #?????????? | | #?????????# [ # S"" #?# #??# #?????????? | | #?????????# # "" #?# #??# #?????????? | | ###########?# ############# #??# #?????????? | | # # #??# #?????????? | | # # #??# #?????????? | | / # + #??# #?????????? | | / # ! # #################??# #?????????? | | / # # #??????????????????# #?????????? | | # ?# #??????????????????? #?????????? | | ######?# #??????????????????? #?????????? | | #??????# #??????????????????? #?????????? | | #??????# #??????????????????? #?????????? | | ##+########## #??????????????????? #?????????? | | #??????????????????? #?????????? | | #??????????????????? ??????????? | +----------------------------------------------------+ Best States ------------- Heat Dissipation 45 Energy Generation 14 Energy Capacity 265 Matter Stores 300 Matter Capacity 300 Sight Range 16 Terrain Scan Density 10 Armor Coverage 225 Evasion (%) 44 Item Schematics ----------------- None Robot Schematics ------------------ None Fabricated ------------ Nothing Repaired ---------- Nothing Alien Tech Used ----------------- None Achievements -------------- None Challenges ------------ None Game ------ Seed DispersalTeleporterBay Manual? 0 Play Time 00:55:24 Cumulative 48.4 hours Start 2025.10.03 @ 21:32:56 End 2025.10.04 @ 00:01:39 Sessions 1 Manual Loads 0 Difficulty Rogue Special Mode None Game No. 44 Rogue 44 Adventurer 0 Explorer 0 Win Type - Total 0 Types 0/0/0/0/0/0/0/0/0/0 Lore% 14 Gallery% 31 Achievement% 28 Wizard Run 0 Options --------- Layout 0 ASCII 0 Keyboard 0 Movement Mouse Keybinds 0 Fullscreen 2 Font 18/X11 Map View 76x50 Zoom Use 8% Tactical HUD 1 Map Filters NONE Filters NONE Steam 1 RUN: 4a608d62-6b4e-47a0-8392-f7f0b22d7480